bitfinex/quotes_BTCUSD_20210402
["timestamp","ask_amount","ask_price","bid_price","bid_amount"]
[1617366540330,0.00303724,59394.0,59364.0,3.854]
[1617366540331,0.0009875,59368.0,59364.0,3.854]
[1617366540524,0.0009875,59368.0,59367.0,0.161]
[1617366540731,0.00098748,59371.0,59368.0,0.006]
[1617366540922,0.00098748,59371.0,59367.0,0.413668]
[1617366541323,0.00098748,59371.0,59368.0,0.1]
[1617366541747,0.00098746,59372.0,59368.0,0.1]
[1617366541947,0.00098744,59373.0,59368.0,0.1]
[1617366542149,0.00098744,59373.0,59368.0,0.1042]
[1617366542544,0.00098744,59373.0,59372.0,0.159]
[1617366542747,0.00098744,59374.0,59372.0,0.159]
[1617366543149,0.00197488,59375.0,59372.0,0.159]
[1617366543150,0.11057665,59373.0,59372.0,0.159]
[1617366543549,0.03957762,59375.0,59372.0,0.159]
[1617366544386,0.29411416,59374.0,59364.0,0.82142]
[1617366544586,0.29411416,59374.0,59364.0,0.5]
[1617366544791,0.01978956,59367.0,59364.0,0.5]
[1617366545181,0.00296844,59365.0,59364.0,0.5]
[1617366545783,0.00296844,59365.0,59360.0,0.158]
[1617366545979,0.00296844,59365.0,59353.0,0.9662]
[1617366546186,0.00296852,59363.0,59355.0,0.33693057]
[1617366547001,0.00296852,59363.0,59362.0,1.0904]
[1617366547404,0.00197898,59363.0,59362.0,1.0904]
[1617366547606,0.01978979,59366.0,59362.0,1.1304]
[1617366547607,0.00197893,59364.0,59362.0,1.1304]
[1617366547798,0.00197893,59364.0,59363.0,0.1]
[1617366548044,0.00098946,59364.0,59363.0,0.305]
[1617366548241,0.00098944,59365.0,59363.0,3.795]
[1617366548644,0.00197888,59367.0,59363.0,3.882676]
[1617366548645,0.00098941,59364.0,59363.0,3.882676]
[1617366548844,0.00098941,59364.0,59363.0,5.62573324]
[1617366549043,0.00098937,59366.0,59363.0,6.39573324]
[1617366549251,0.00098931,59371.0,59365.0,4.43305724]
[1617366549437,0.00098931,59371.0,59368.0,0.006]
[1617366549656,0.00296793,59374.0,59370.0,0.547892]
[1617366549657,0.00098929,59372.0,59370.0,0.547892]
[1617366549858,0.00098929,59373.0,59371.0,6.60886454]
[1617366550059,0.01978568,59378.0,59372.0,6.06981036]
[1617366550060,0.00098927,59374.0,59372.0,6.06981036]
[1617366550251,0.00098927,59374.0,59373.0,5.57305724]
[1617366550452,0.00197853,59376.0,59374.0,4.69]
[1617366550661,0.00197853,59377.0,59375.0,5.90162642]
[1617366550854,0.00197853,59377.0,59376.0,6.01305724]
[1617366551060,0.00197835,59382.0,59377.0,0.126276]
[1617366551263,0.00197835,59383.0,59378.0,2.045152]
[1617366551461,0.00197835,59384.0,59380.0,0.387892]
[1617366551655,0.00197835,59384.0,59383.0,3.855]
[1617366551856,0.00197835,59384.0,59383.0,4.395]
[1617366552058,0.00197831,59385.0,59384.0,4.04516524]
[1617366552254,0.75924832,59386.0,59385.0,4.08318693]
[1617366552457,0.75924832,59386.0,59385.0,4.70216524]
[1617366552655,0.75924832,59386.0,59385.0,4.84216524]
[1617366552857,0.75924832,59386.0,59385.0,1.277]
[1617366553258,0.75924832,59386.0,59385.0,0.757]
[1617366553457,0.75924832,59386.0,59385.0,0.157]
[1617366553669,0.387892,59382.0,59373.0,0.156]
[1617366553864,0.377892,59377.0,59373.0,0.156]
[1617366554054,0.31646118,59381.0,59373.0,0.156]
[1617366554663,0.11619,59382.0,59373.0,0.2633689]
[1617366555089,0.14,59381.0,59373.0,0.2633689]
[1617366555488,0.14,59381.0,59364.0,0.35516524]
[1617366555690,0.14,59381.0,59364.0,0.04]
[1617366555885,0.002,59384.0,59364.0,0.39516524]
[1617366556090,0.002,59384.0,59373.0,0.154]
[1617366556293,0.002,59384.0,59383.0,0.164]
[1617366556488,0.387964,59384.0,59383.0,0.164]
[1617366557498,0.387964,59384.0,59376.0,0.159]
[1617366557900,0.387964,59380.0,59376.0,0.159]
[1617366558100,0.17,59383.0,59376.0,0.159]
[1617366558301,0.17,59383.0,59374.0,0.16736762]
[1617366558703,0.135,59382.0,59376.0,0.158]
[1617366559499,0.17,59383.0,59376.0,0.158]
[1617366560527,0.75924832,59386.0,59376.0,0.158]
[1617366560725,0.75924832,59386.0,59376.0,0.258]
[1617366563570,0.75924832,59386.0,59376.0,0.510623]
[1617366565397,0.00750753,59385.0,59376.0,0.510623]
[1617366565994,0.00084204,59382.0,59376.0,0.510623]
[1617366566798,0.00084204,59382.0,59376.0,0.253]
[1617366567196,0.16,59381.0,59376.0,0.253]
[1617366569617,0.16,59381.0,59376.0,0.1]
[1617366569817,0.135,59380.0,59363.0,0.08820135]
[1617366570011,0.31498258,59379.0,59363.0,0.08420135]
[1617366570625,0.36794554,59379.0,59363.0,0.08420135]
[1617366570834,0.2602008,59378.0,59362.0,0.9374]
[1617366571030,0.26316382,59378.0,59362.0,0.9374]
[1617366571228,0.00600029,59377.0,59362.0,0.9374]
[1617366571625,0.00296311,59376.0,59362.0,0.9374]
[1617366571825,0.00296314,59375.0,59362.0,0.9374]
[1617366572026,0.15,59374.0,59362.0,0.93664705]
[1617366572229,0.252734,59370.0,59362.0,0.93664705]
[1617366572620,0.302734,59370.0,59362.0,0.93664705]
[1617366572830,0.145,59369.0,59362.0,0.93664705]
[1617366573033,0.00296309,59377.0,59363.0,0.387964]
[1617366573265,0.75924832,59386.0,59371.0,0.252641]
[1617366573266,0.00380501,59382.0,59371.0,0.252641]
[1617366573457,0.00380501,59382.0,59374.0,0.164]
[1617366573664,0.00084204,59382.0,59374.0,0.164]
[1617366575253,0.00084204,59382.0,59375.0,0.336816]
[1617366575876,0.00084204,59382.0,59376.0,0.1]
[1617366576290,0.00084204,59382.0,59373.0,0.0673707]
[1617366576291,0.00296461,59381.0,59373.0,0.0673707]
[1617366576482,0.00296468,59380.0,59373.0,0.0673707]
[1617366576678,0.0029647,59379.0,59373.0,0.0673707]
[1617366576877,0.00084208,59377.0,59373.0,0.0673707]
[1617366579326,0.00084208,59377.0,59376.0,0.155]
[1617366579524,0.00084208,59377.0,59376.0,0.48881]
[1617366579729,0.00084208,59377.0,59376.0,0.58881]
[1617366580727,0.00084208,59377.0,59376.0,0.841432]
[1617366583333,0.11454437,59377.0,59376.0,0.841432]
[1617366584354,0.11454437,59377.0,59376.0,0.686432]
[1617366585751,0.11454437,59377.0,59376.0,0.684819]
[1617366586156,0.11454437,59377.0,59376.0,0.584819]
[1617366586385,0.11454437,59377.0,59376.0,0.332197]
[1617366586578,0.11454437,59377.0,59367.0,0.6]
[1617366586778,0.11454437,59377.0,59368.0,0.1]
[1617366586979,0.00297042,59372.0,59368.0,0.6]
[1617366587180,0.00297042,59373.0,59371.0,0.156]
[1617366587381,0.00297042,59372.0,59368.0,0.6]
[1617366587777,0.00381256,59372.0,59369.0,0.06737297]
[1617366588379,0.00381256,59372.0,59371.0,0.252649]
[1617366588777,0.00381256,59372.0,59371.0,0.352649]
[1617366589207,0.00084214,59372.0,59371.0,0.352649]
[1617366589802,0.00084214,59372.0,59371.0,1.552649]
[1617366590005,0.00084214,59372.0,59371.0,0.740613]
[1617366590606,0.00084214,59372.0,59371.0,0.900613]
[1617366590802,0.00084214,59372.0,59371.0,2.250613]
[1617366591002,0.00084214,59372.0,59371.0,0.900613]
[1617366591406,0.00084214,59372.0,59371.0,1.66374404]
[1617366592226,0.00084214,59372.0,59371.0,1.400613]
[1617366592628,0.00084214,59372.0,59371.0,1.012649]
[1617366593071,0.00084214,59372.0,59371.0,0.752649]
[1617366593676,0.00084214,59372.0,59371.0,0.252649]
[1617366594676,0.00084214,59372.0,59371.0,0.352649]
[1617366599287,0.00084214,59372.0,59371.0,2.76135333]
[1617366599514,0.00084214,59372.0,59371.0,3.16728333]
[1617366599715,0.00084214,59372.0,59371.0,6.85728333]
[1617366600913,0.00084214,59372.0,59371.0,7.24920169]
[1617366601108,0.00084214,59372.0,59371.0,2.11728333]
[1617366601313,0.62197338,59386.0,59371.0,1.694073]
[1617366601515,0.94297768,59386.0,59378.0,0.08419848]
[1617366601713,0.14,59385.0,59378.0,0.08419848]
[1617366601918,0.08450958,59385.0,59378.0,0.08419848]
[1617366602135,0.1241124,59385.0,59378.0,0.08419848]
[1617366602332,0.387964,59381.0,59378.0,0.08419848]
[1617366602547,0.387964,59379.0,59378.0,0.08419848]
[1617366603138,0.387964,59379.0,59378.0,9.848e-05]
[1617366603536,0.219518,59379.0,59378.0,9.848e-05]
[1617366603736,0.394518,59379.0,59378.0,9.848e-05]
[1617366603933,0.226075,59379.0,59378.0,9.848e-05]
[1617366604132,0.051075,59379.0,59378.0,9.848e-05]
[1617366604965,0.38227951,59379.0,59377.0,0.126336]
[1617366605164,0.387951,59378.0,59377.0,0.126336]
[1617366605559,0.532951,59378.0,59377.0,0.126336]
[1617366605960,0.532951,59378.0,59367.0,0.168458]
[1617366606164,0.252701,59373.0,59362.0,1.10511405]
[1617366606362,0.328956,59372.0,59371.0,0.12635]
[1617366606561,0.493956,59372.0,59371.0,0.12635]
[1617366606759,0.493956,59372.0,59371.0,0.17635]
[1617366608816,0.165,59372.0,59371.0,0.33535]
[1617366609017,0.26692158,59388.0,59371.0,3.68535]
[1617366609220,0.05932179,59390.0,59371.0,3.93535]
[1617366609419,0.40923365,59386.0,59377.0,0.126321]
[1617366609615,0.40923365,59386.0,59378.0,0.05]
[1617366609817,0.24080653,59386.0,59378.0,0.045]
[1617366610034,0.49344153,59386.0,59378.0,0.11237085]
[1617366610642,0.24080653,59386.0,59385.0,0.162]
[1617366610839,0.24080653,59386.0,59385.0,2.41805]
[1617366610840,0.0724365,59386.0,59385.0,2.41805]
[1617366611040,0.0724365,59386.0,59385.0,2.67062]
[1617366611236,0.126327,59388.0,59385.0,2.67062]
[1617366611237,0.15,59395.0,59386.0,3.69]
[1617366611433,0.15,59395.0,59388.0,0.0054]
[1617366612234,0.15,59395.0,59391.0,0.252556]
[1617366612633,0.15,59395.0,59391.0,0.302556]
[1617366612833,0.15,59395.0,59391.0,0.622586]
[1617366613842,0.15,59395.0,59394.0,3.833]
[1617366614044,0.00303724,59409.0,59394.0,3.833]
[1617366614045,0.05931317,59409.0,59394.0,3.833]
[1617366614243,0.05931317,59409.0,59407.0,0.155]
[1617366614445,0.387956,59419.0,59407.0,0.54255]
[1617366614640,0.387956,59419.0,59408.0,0.0046]
[1617366614641,0.542956,59419.0,59408.0,0.0046]
[1617366615270,0.5,59420.0,59408.0,0.257086]
[1617366615866,0.5,59420.0,59408.0,0.5649918]
[1617366616661,0.5,59420.0,59408.0,0.70442416]
[1617366616863,0.5,59420.0,59409.0,0.05]
[1617366617063,0.05,59409.0,59408.0,0.3125058]
[1617366617260,0.05,59409.0,59408.0,0.5603768]
[1617366617463,0.05,59409.0,59408.0,2.6533328]
[1617366617659,0.05,59409.0,59408.0,0.945427]
[1617366617885,0.05,59409.0,59408.0,1.2533328]
[1617366618087,0.05,59409.0,59408.0,1.69525116]
[1617366618288,0.05,59409.0,59408.0,0.995427]
[1617366618486,0.05,59409.0,59408.0,1.48734536]
[1617366618685,0.05,59409.0,59408.0,1.095427]
[1617366618890,0.05,59409.0,59408.0,0.871471]
[1617366619089,0.05,59409.0,59408.0,1.1793768]
[1617366619291,0.05,59409.0,59408.0,1.99925116]
[1617366619491,0.05,59409.0,59408.0,4.75129516]
[1617366619690,0.0498,59409.0,59408.0,1.6793768]
[1617366619890,0.0498,59409.0,59408.0,2.07129516]
[1617366620088,0.0498,59409.0,59408.0,1.9293768]
[1617366620505,0.0498,59409.0,59408.0,2.32129516]
[1617366621308,0.0498,59409.0,59408.0,1.9293768]
[1617366621506,0.0498,59409.0,59408.0,2.32129516]
[1617366622506,0.0498,59409.0,59408.0,3.13129516]
[1617366622706,0.0498,59409.0,59408.0,3.51925116]
[1617366623179,0.0498,59409.0,59408.0,2.70925116]
[1617366623581,0.0498,59409.0,59408.0,2.32129516]
[1617366623785,0.0498,59409.0,59408.0,1.85729516]
[1617366623984,0.0498,59409.0,59408.0,1.75729516]
[1617366624181,0.0498,59409.0,59408.0,1.14438936]
[1617366624983,0.0498,59409.0,59408.0,0.97605861]
[1617366625379,0.0498,59409.0,59408.0,0.85773243]
[1617366625583,0.0498,59409.0,59408.0,1.00523243]
[1617366625806,0.0498,59409.0,59408.0,0.83690625]
[1617366626006,0.0498,59409.0,59408.0,0.302471]
[1617366626214,0.0498,59409.0,59408.0,0.252471]
[1617366626407,0.0498,59409.0,59408.0,1.812471]
[1617366626606,0.0498,59409.0,59408.0,0.252471]
[1617366627010,0.05930712,59409.0,59408.0,0.252471]
[1617366627408,0.06597587,59409.0,59408.0,2.592471]
[1617366627608,0.06597587,59409.0,59408.0,3.080427]
[1617366627808,0.06597587,59409.0,59408.0,1.175427]
[1617366628009,0.06597587,59409.0,59408.0,0.787471]
[1617366628210,0.06597587,59409.0,59408.0,0.352471]
[1617366628424,0.06597587,59409.0,59408.0,0.184148]
[1617366629126,0.06597587,59409.0,59408.0,0.084148]
[1617366630131,0.24,59426.0,59408.0,0.084148]
[1617366630132,0.535,59449.0,59408.0,0.084148]
[1617366630333,0.0012,59674.0,59450.0,3.53720666]
[1617366630334,4.000947,59451.0,59450.0,3.53720666]
[1617366630535,4.000947,59451.0,59450.0,3.24007443]
[1617366630536,4.700947,59451.0,59450.0,3.24007443]
[1617366630729,5.20673892,59451.0,59450.0,3.07175919]
[1617366630928,5.952947,59451.0,59450.0,2.07355919]
[1617366631754,5.552947,59451.0,59450.0,2.07355919]
[1617366632555,5.86128679,59451.0,59450.0,2.07355919]
[1617366632755,5.56128679,59451.0,59450.0,2.07355919]
[1617366633155,5.66128679,59451.0,59450.0,2.07355919]
[1617366633354,6.37394629,59451.0,59450.0,2.07355919]
[1617366634376,7.07394629,59451.0,59450.0,2.07355919]
[1617366634780,6.37394629,59451.0,59450.0,2.07355919]
[1617366635780,7.07394629,59451.0,59450.0,1.07535919]
[1617366636181,7.07394629,59451.0,59450.0,0.90704219]
[1617366636406,7.23394629,59451.0,59450.0,0.90704219]
[1617366636605,6.53394629,59451.0,59450.0,0.90704219]
[1617366636806,0.06732295,59438.0,59415.0,0.00303724]
[1617366637009,0.426559,59437.0,59424.0,0.16]
[1617366637211,0.387956,59433.0,59424.0,0.34207]
[1617366637404,0.387956,59433.0,59422.0,0.03948906]
[1617366637405,0.002,59433.0,59422.0,0.03948906]
[1617366637604,0.14,59432.0,59422.0,0.03948906]
[1617366637809,0.387956,59428.0,59422.0,0.03948906]
[1617366638006,0.387956,59427.0,59422.0,0.03948906]
[1617366638227,0.387956,59427.0,59426.0,3.847]
[1617366638413,0.14750166,59432.0,59426.0,4.24523]
[1617366638614,0.14750166,59432.0,59426.0,4.52223]
[1617366638818,0.1049054,59431.0,59426.0,4.52223]
[1617366639464,0.1049054,59431.0,59430.0,3.853]
[1617366639667,0.1049054,59431.0,59430.0,4.105396]
[1617366639873,0.1049054,59431.0,59430.0,4.115396]
[1617366640066,0.1049054,59431.0,59430.0,0.425396]
[1617366640271,0.1049054,59431.0,59430.0,1.205396]
[1617366640466,0.0999054,59431.0,59430.0,3.995396]
[1617366640867,0.0999054,59431.0,59430.0,1.205396]
[1617366641066,0.0999054,59431.0,59430.0,0.525396]
[1617366641468,0.0999054,59431.0,59430.0,0.425396]
[1617366641673,0.0999054,59431.0,59430.0,0.84840864]
[1617366641869,0.0999054,59431.0,59430.0,0.94840864]
[1617366642268,0.0999054,59431.0,59430.0,5.13236464]
[1617366642269,0.0936414,59431.0,59430.0,5.13236464]
[1617366642468,0.0936414,59431.0,59430.0,6.75236464]
[1617366642669,0.0936414,59431.0,59430.0,6.79236464]
[1617366643072,0.01316312,59432.0,59431.0,0.35516524]
[1617366643271,0.01316312,59432.0,59431.0,5.73412124]
[1617366643469,0.01316312,59432.0,59431.0,6.38612124]
[1617366644681,0.01316312,59432.0,59431.0,6.36012124]
[1617366645478,0.00816312,59432.0,59431.0,6.36012124]
[1617366647111,0.00816312,59432.0,59431.0,6.37912124]
[1617366650728,0.00816312,59432.0,59431.0,5.37912124]
[1617366650924,0.01316295,59432.0,59431.0,5.37912124]
[1617366651125,0.01316295,59432.0,59431.0,6.37912124]
[1617366652156,0.0018,59451.0,59450.0,4.98183705]
[1617366652358,0.0038,59451.0,59450.0,5.32658705]
[1617366652551,0.0038,59451.0,59450.0,5.56558705]
[1617366652953,0.0038,59451.0,59450.0,5.32658705]
[1617366653444,0.0538,59451.0,59450.0,5.68175229]
[1617366653843,0.0538,59451.0,59450.0,5.75475229]
[1617366654697,0.0538,59451.0,59450.0,5.39958705]
[1617366654901,0.04464103,59451.0,59450.0,5.39358705]
[1617366656698,0.60030047,59451.0,59450.0,5.32158705]
[1617366657098,0.75030047,59451.0,59450.0,5.32158705]
[1617366658312,0.05030047,59451.0,59450.0,5.67675229]
[1617366658711,0.00830047,59451.0,59450.0,5.67675229]
[1617366658910,0.26830047,59451.0,59450.0,5.67675229]
[1617366659112,0.00830047,59451.0,59450.0,5.67675229]
[1617366659931,0.49830047,59451.0,59450.0,5.67675229]
[1617366660132,0.00830047,59451.0,59450.0,5.67675229]
[1617366661131,0.00330047,59451.0,59450.0,5.67675229]
[1617366661931,0.26330047,59451.0,59450.0,5.67675229]
[1617366662553,0.26754758,59451.0,59450.0,5.67675229]
[1617366662955,0.91754758,59451.0,59450.0,5.67675229]
[1617366663152,0.91754758,59451.0,59450.0,5.32158705]
[1617366663153,1.15254758,59451.0,59450.0,5.32158705]
[1617366663350,0.50254758,59451.0,59450.0,5.33200229]
[1617366663550,0.50254758,59451.0,59450.0,4.97683705]
[1617366664153,1.01004634,59451.0,59450.0,4.97683705]
[1617366664363,2.2747547,59451.0,59450.0,3.97743705]
[1617366664558,2.7190347,59451.0,59450.0,3.97743705]
[1617366664956,4.9890347,59451.0,59450.0,2.97803705]
[1617366665190,5.3769907,59451.0,59450.0,2.97803705]
[1617366665392,5.3769907,59451.0,59450.0,1.97863705]
[1617366665584,5.4269907,59451.0,59450.0,1.97863705]
[1617366666184,5.3769907,59451.0,59450.0,1.97863705]
[1617366666997,5.3769907,59451.0,59450.0,0.97923705]
[1617366666998,5.4269907,59451.0,59450.0,0.97923705]
[1617366667193,6.17693444,59451.0,59409.0,3.270634]
[1617366667393,0.002,59444.0,59424.0,0.9789]
[1617366667591,0.937956,59443.0,59425.0,0.005]
[1617366667810,0.66681042,59442.0,59425.0,0.005]
[1617366668011,0.255,59441.0,59425.0,0.005]
[1617366668292,0.887956,59440.0,59425.0,0.005]
[1617366668488,0.10269105,59439.0,59425.0,0.005]
[1617366668702,0.328951,59438.0,59427.0,0.252442]
[1617366668892,0.43768721,59437.0,59428.0,0.006]
[1617366669089,0.387956,59436.0,59428.0,0.006]
[1617366669290,0.49062026,59436.0,59428.0,0.006]
[1617366669691,0.10266439,59435.0,59428.0,0.136]
[1617366669891,0.328951,59434.0,59431.0,0.252422]
[1617366670089,0.378951,59434.0,59432.0,0.143]
[1617366670291,0.10266421,59433.0,59432.0,0.143]
[1617366670950,0.10266421,59433.0,59431.0,0.252422]
[1617366671152,0.60266421,59433.0,59428.0,0.252434]
[1617366671353,0.26266687,59432.0,59428.0,0.395434]
[1617366671551,0.26266687,59432.0,59428.0,0.38812557]
[1617366671752,0.10266687,59432.0,59428.0,0.38812557]
[1617366671951,0.1026672,59435.0,59428.0,0.38812557]
[1617366672156,0.1026672,59435.0,59431.0,0.162]
[1617366672561,0.1026672,59435.0,59432.0,0.48085942]
[1617366672958,0.1026672,59435.0,59432.0,1.48085942]
[1617366673159,0.1026672,59435.0,59433.0,0.387956]
[1617366673362,0.00750103,59436.0,59434.0,1.203]
[1617366673559,0.00750103,59436.0,59435.0,4.381956]
[1617366673756,0.00750103,59436.0,59435.0,5.743296]
[1617366673955,0.00264103,59451.0,59450.0,4.98683796]
[1617366674157,0.00264103,59451.0,59450.0,5.43204796]
[1617366674360,0.00264103,59451.0,59450.0,5.74304796]
[1617366675352,0.26264103,59451.0,59450.0,5.74304796]
[1617366675777,0.26264103,59451.0,59450.0,4.97251416]
[1617366679005,0.26264103,59451.0,59450.0,4.66151416]
[1617366679208,0.26264103,59451.0,59450.0,4.80651416]
[1617366679406,0.26264103,59451.0,59450.0,4.66151416]
[1617366679807,0.26264103,59451.0,59450.0,3.99768481]
[1617366680410,0.26264103,59451.0,59450.0,4.39968481]
[1617366680806,0.26264103,59451.0,59450.0,4.29968481]
[1617366681028,0.26264103,59451.0,59450.0,4.14268481]
[1617366683989,0.26264103,59451.0,59450.0,4.19614381]
[1617366684190,0.26264103,59451.0,59450.0,4.44614381]
[1617366684786,0.26264103,59451.0,59450.0,4.11114381]
[1617366684988,0.26264103,59451.0,59450.0,4.27714381]
[1617366685388,0.26264103,59451.0,59450.0,4.47714381]
[1617366685988,0.26264103,59451.0,59450.0,4.66714381]
[1617366686789,0.26264103,59451.0,59450.0,4.47714381]
[1617366687191,0.26264103,59451.0,59450.0,4.27714381]
[1617366687789,0.26264103,59451.0,59450.0,4.47714381]
[1617366688590,0.26264103,59451.0,59450.0,4.17714381]
[1617366688810,0.26264103,59451.0,59450.0,4.01114381]
[1617366689011,0.26264103,59451.0,59450.0,4.37814381]
[1617366689411,0.26264103,59451.0,59450.0,4.17814381]
[1617366690611,0.26264103,59451.0,59450.0,4.17314381]
[1617366691831,0.26264103,59451.0,59450.0,4.00614381]
[1617366693230,0.26264103,59451.0,59450.0,4.20514381]
[1617366694056,0.26264103,59451.0,59450.0,4.00614381]
[1617366696888,0.26264103,59451.0,59450.0,4.21314381]
[1617366698090,0.26264103,59451.0,59450.0,4.39409981]
[1617366698385,0.00264103,59451.0,59450.0,4.65309981]
[1617366698581,0.001221,59457.0,59454.0,0.164]
[1617366698981,0.0008,59460.0,59455.0,3.68]
[1617366699179,0.0008,59460.0,59456.0,0.35516524]
[1617366699420,0.0008,59460.0,59457.0,0.252301]
[1617366699625,0.0004,59462.0,59459.0,3.842]
[1617366699819,0.0024,59462.0,59460.0,0.35516524]
[1617366700016,0.002,59462.0,59461.0,3.68]
[1617366700218,0.0008,59472.0,59461.0,4.33516524]
[1617366700418,0.04508903,59488.0,59461.0,4.33516524]
[1617366700620,0.4484,59506.0,59461.0,4.33516524]
[1617366700828,0.5,59473.0,59469.0,0.06727529]
[1617366701025,0.502,59473.0,59470.0,0.00303724]
[1617366701224,0.502,59473.0,59469.0,0.58435529]
[1617366701225,0.002,59473.0,59472.0,3.836]
[1617366701418,0.002,59473.0,59472.0,3.886]
[1617366701620,0.002,59473.0,59472.0,4.806]
[1617366701819,0.7405,59486.0,59474.0,0.00303724]
[1617366702048,1.2405,59486.0,59479.0,0.06726615]
[1617366702243,1.2425,59486.0,59479.0,0.06726615]
[1617366702441,0.185,59485.0,59479.0,0.06726615]
[1617366702644,0.187,59485.0,59480.0,0.05]
[1617366703041,0.177,59485.0,59480.0,0.05]
[1617366703243,0.205,59484.0,59480.0,0.05]
[1617366703445,0.387956,59481.0,59480.0,0.05]
[1617366703644,0.389956,59481.0,59480.0,0.05]
[1617366705659,0.002,59481.0,59480.0,3.092228]
[1617366705860,0.002,59481.0,59480.0,0.352228]
[1617366706062,0.002,59481.0,59480.0,0.05]
[1617366706261,0.187,59481.0,59479.0,0.06726615]
[1617366706456,0.387956,59480.0,59479.0,0.06726615]
[1617366706659,0.389956,59480.0,59479.0,0.06726615]
[1617366707488,0.389956,59480.0,59479.0,0.05]
[1617366707887,0.389956,59480.0,59474.0,0.126125]
[1617366708092,0.002,59480.0,59474.0,0.176125]
[1617366708289,0.16,59479.0,59474.0,0.176125]
[1617366708493,0.162,59479.0,59475.0,0.05]
[1617366709918,0.00084066,59478.0,59475.0,0.05]
[1617366710111,0.00284066,59478.0,59475.0,0.05]
[1617366710312,0.00284066,59478.0,59474.0,0.176125]
[1617366710514,0.00284066,59478.0,59474.0,0.126125]
[1617366710718,0.00284066,59478.0,59474.0,0.176125]
[1617366710914,0.00284066,59478.0,59475.0,0.11726645]
[1617366711717,0.00284066,59478.0,59477.0,0.05]
[1617366711916,0.00284066,59478.0,59477.0,3.42636]
[1617366712118,0.00284066,59478.0,59477.0,0.44636]
[1617366712318,0.00284066,59478.0,59477.0,0.39636]
[1617366713151,0.00284066,59478.0,59477.0,0.44636]
[1617366713430,0.00284066,59478.0,59477.0,1.09636]
[1617366713618,0.00284066,59478.0,59477.0,1.14636]
[1617366713818,0.00284066,59478.0,59477.0,0.49636]
[1617366714418,0.00284066,59478.0,59477.0,1.28636]
[1617366714617,0.00284066,59478.0,59477.0,0.49636]
[1617366715480,0.00284066,59478.0,59477.0,1.90636]
[1617366716679,0.00284066,59478.0,59477.0,0.49636]
[1617366717281,0.00284066,59478.0,59477.0,0.44636]
[1617366717480,0.00284066,59478.0,59477.0,2.65636]
[1617366717692,0.00284066,59478.0,59477.0,0.44636]
[1617366718491,0.00284066,59478.0,59477.0,0.445689]
[1617366720316,0.00284066,59478.0,59477.0,2.595689]
[1617366720919,0.00284066,59478.0,59477.0,3.095689]
[1617366721117,0.00284066,59478.0,59477.0,3.433645]
[1617366721315,0.00284066,59478.0,59477.0,4.343645]
[1617366722119,0.57885103,59478.0,59477.0,4.583645]
[1617366722318,0.57885103,59478.0,59477.0,3.433645]
[1617366722517,0.57885103,59478.0,59477.0,2.983645]
[1617366722714,0.57885103,59478.0,59477.0,2.595689]
[1617366722935,0.08085103,59478.0,59477.0,4.513645]
[1617366723134,0.08085103,59478.0,59477.0,2.983645]
[1617366723333,0.08085103,59478.0,59477.0,4.513645]
[1617366723533,0.08085103,59478.0,59477.0,4.66530216]
[1617366723733,0.08085103,59478.0,59477.0,3.13530216]
[1617366723933,0.08085103,59478.0,59477.0,2.983645]
[1617366724333,0.08085103,59478.0,59477.0,5.06630216]
[1617366724533,0.08085103,59478.0,59477.0,3.384645]
[1617366724737,0.08085103,59478.0,59477.0,0.445689]
[1617366725334,0.08085103,59478.0,59477.0,2.265689]
[1617366725758,0.08085103,59478.0,59477.0,2.653645]
[1617366726361,0.08085103,59478.0,59477.0,2.96430216]
[1617366726559,0.08085103,59478.0,59477.0,3.39930216]
[1617366727365,0.08085103,59478.0,59477.0,3.56630216]
[1617366728191,0.08085103,59478.0,59477.0,1.594645]
[1617366728450,0.08085103,59478.0,59477.0,1.159645]
[1617366728649,0.08085103,59478.0,59477.0,1.31130216]
[1617366728861,0.08085103,59478.0,59477.0,1.159645]
[1617366729052,0.08085103,59478.0,59477.0,0.445689]
[1617366729254,0.08085103,59478.0,59477.0,2.885689]
[1617366729452,0.08085103,59478.0,59477.0,0.445689]
[1617366729650,0.08085103,59478.0,59477.0,1.14930216]
[1617366729854,0.08085103,59478.0,59477.0,1.36930216]
[1617366730051,0.08085103,59478.0,59477.0,1.217645]
[1617366730253,0.08085103,59478.0,59477.0,3.46930216]
[1617366730649,0.08085103,59478.0,59477.0,1.14930216]
[1617366730855,0.08085103,59478.0,59477.0,0.997645]
[1617366731254,0.08085103,59478.0,59477.0,0.445689]
[1617366731852,0.08169168,59478.0,59477.0,0.445689]
[1617366732255,0.08169168,59478.0,59477.0,1.545689]
[1617366732455,0.08169168,59478.0,59477.0,2.087645]
[1617366732656,0.08169168,59478.0,59477.0,2.23930216]
[1617366732856,0.08169168,59478.0,59477.0,2.342645]
[1617366733253,0.08169168,59478.0,59477.0,2.49430216]
[1617366733458,0.08169168,59478.0,59477.0,2.342645]
[1617366733856,0.08169168,59478.0,59477.0,2.49430216]
[1617366734256,0.08169168,59478.0,59477.0,3.93430216]
[1617366734455,0.07969168,59478.0,59477.0,3.93430216]
[1617366734657,0.07969168,59478.0,59477.0,2.49430216]
[1617366735461,0.07969168,59478.0,59477.0,2.342645]
[1617366735660,0.07969168,59478.0,59477.0,2.087645]
[1617366735858,0.07969168,59478.0,59477.0,2.23930216]
[1617366736067,0.07969168,59478.0,59477.0,2.087645]
[1617366736260,0.07969168,59478.0,59477.0,1.545689]
[1617366736461,0.07969168,59478.0,59477.0,0.445689]
[1617366736864,0.08718703,59478.0,59477.0,0.445689]
[1617366737069,0.45587101,59478.0,59477.0,0.445689]
[1617366737266,0.08718703,59478.0,59477.0,0.39636]
[1617366737465,0.08718703,59478.0,59476.0,0.0125]
[1617366739490,0.08718703,59478.0,59477.0,3.47]
[1617366739692,0.08718703,59478.0,59477.0,3.77289]
[1617366740092,0.08718703,59478.0,59477.0,4.160846]
[1617366740290,0.08718703,59478.0,59477.0,4.36250316]
[1617366740492,0.08718703,59478.0,59477.0,4.41250316]
[1617366740892,0.08718703,59478.0,59477.0,0.780846]
[1617366741093,0.08718703,59478.0,59477.0,3.147956]
[1617366741716,0.08718703,59478.0,59477.0,2.76]